[Event "Titled Tuesday Blitz November 15 Early 2022"]
[White "Rosh Jain"]
[Black "Gorodetzky, David"]
[WhiteFideId "25789465"]
[BlackFideId "2813416"]
[WhiteElo "2233"]
[BlackElo "2497"]
[Result "0-1"]
[Round "02"]
[TimeControl "180+1"]
[Date "2022.11.16"]
[WhiteClock "0:00:02"]
[BlackClock "0:00:47"]

1. e4 {[%clk 0:03:00]}  Nf6 {[%clk 0:02:57]} 2. e5 {[%clk 0:03:00]}  Nd5 {[%clk 0:02:58]} 3. d4 {[%clk 0:03:00]}  d6 {[%clk 0:02:59]} 4. Nf3 {[%clk 0:02:59]}  g6 {[%clk 0:02:58]} 5. Bc4 {[%clk 0:02:53]}  Nb6 {[%clk 0:02:57]} 6. Bb3 {[%clk 0:02:52]}  Bg7 {[%clk 0:02:57]} 7. exd6 {[%clk 0:02:52]}  cxd6 {[%clk 0:02:56]} 8. c3 {[%clk 0:02:52]}  Nc6 {[%clk 0:02:56]} 9. Bf4 {[%clk 0:02:52]}  h6 {[%clk 0:02:56]} 10. Nbd2 {[%clk 0:02:51]}  e5 {[%clk 0:02:52]} 11. dxe5 {[%clk 0:02:44]}  dxe5 {[%clk 0:02:52]} 12. Bg3 {[%clk 0:02:44]}  Bf5 {[%clk 0:02:52]} 13. O-O {[%clk 0:02:43]}  O-O {[%clk 0:02:51]} 14. Nh4 {[%clk 0:02:38]}  Bd3 {[%clk 0:02:49]} 15. Re1 {[%clk 0:02:38]}  Kh7 {[%clk 0:02:49]} 16. a4 {[%clk 0:02:07]}  a5 {[%clk 0:02:40]} 17. Bc2 {[%clk 0:02:03]}  f5 {[%clk 0:02:33]} 18. f4 {[%clk 0:01:51]}  exf4 {[%clk 0:02:29]} 19. Bf2 {[%clk 0:01:51]}  Nc4 {[%clk 0:01:43]} 20. Nxc4 {[%clk 0:01:15]}  Bxc4 {[%clk 0:01:44]} 21. Qf3 {[%clk 0:01:05]}  Qc7 {[%clk 0:01:27]} 22. Bc5 {[%clk 0:00:46]}  Ne5 {[%clk 0:01:13]} 23. Rxe5 {[%clk 0:00:30]}  Qxe5 {[%clk 0:01:14]} 24. Bxf8 {[%clk 0:00:25]}  Rxf8 {[%clk 0:01:15]} 25. Qf2 {[%clk 0:00:20]}  Re8 {[%clk 0:01:00]} 26. Nf3 {[%clk 0:00:18]}  Qe2 {[%clk 0:00:59]} 27. Re1 {[%clk 0:00:12]}  Qxf2+ {[%clk 0:00:54]} 28. Kxf2 {[%clk 0:00:13]}  Rxe1 {[%clk 0:00:52]} 29. Nxe1 {[%clk 0:00:13]}  Bf8 {[%clk 0:00:50]} 30. b3 {[%clk 0:00:13]}  Bd5 {[%clk 0:00:49]} 31. Nd3 {[%clk 0:00:12]}  Bd6 {[%clk 0:00:49]} 32. c4 {[%clk 0:00:12]}  Be4 {[%clk 0:00:49]} 33. Ne1 {[%clk 0:00:10]}  Kg7 {[%clk 0:00:49]} 34. Bd3 {[%clk 0:00:09]}  Bb4 {[%clk 0:00:48]} 35. Be2 {[%clk 0:00:07]}  Kf6 {[%clk 0:00:47]} 36. Bf3 {[%clk 0:00:07]}  Ke5 {[%clk 0:00:47]} 37. Bxe4 {[%clk 0:00:06]}  fxe4 {[%clk 0:00:47]} 38. Nc2 {[%clk 0:00:06]}  Bc5+ {[%clk 0:00:46]} 39. Ke2 {[%clk 0:00:06]}  g5 {[%clk 0:00:47]} 40. Ne1 {[%clk 0:00:05]}  g4 {[%clk 0:00:47]} 41. g3 {[%clk 0:00:05]}  f3+ {[%clk 0:00:47]} 42. Kf1 {[%clk 0:00:04]}  Kd4 {[%clk 0:00:47]} 43. Nc2+ {[%clk 0:00:03]}  Kc3 {[%clk 0:00:47]} 44. Ne1 {[%clk 0:00:02]}  e3 {[%clk 0:00:47]} 45. h3 {[%clk 0:00:02]}  e2# {[%clk 0:00:47]} 0-1


[Site "https://www.chess.com"]

[Event "Titled Tuesday Blitz November 15 Early 2022"]
[White "Salinas Herrera, Pablo"]
[Black "Goltseva, Ekaterina"]
[WhiteFideId "3407128"]
[BlackFideId "24173770"]
[WhiteElo "2557"]
[BlackElo "2200"]
[Result "1-0"]
[Round "02"]
[TimeControl "180+1"]
[Date "2022.11.16"]
[WhiteClock "0:00:07"]
[BlackClock "0:00:02"]

1. d4 {[%clk 0:03:00]}  Nf6 {[%clk 0:02:53]} 2. Nf3 {[%clk 0:02:58]}  e6 {[%clk 0:02:51]} 3. Bf4 {[%clk 0:02:58]}  c5 {[%clk 0:02:51]} 4. e3 {[%clk 0:02:58]}  b6 {[%clk 0:02:51]} 5. Nbd2 {[%clk 0:02:57]}  cxd4 {[%clk 0:02:50]} 6. exd4 {[%clk 0:02:56]}  Bb7 {[%clk 0:02:51]} 7. Nc4 {[%clk 0:02:53]}  d6 {[%clk 0:02:50]} 8. Bd3 {[%clk 0:02:48]}  Be7 {[%clk 0:02:50]} 9. O-O {[%clk 0:02:48]}  Nh5 {[%clk 0:02:45]} 10. Be3 {[%clk 0:02:47]}  O-O {[%clk 0:02:43]} 11. Re1 {[%clk 0:02:46]}  Nd7 {[%clk 0:02:42]} 12. c3 {[%clk 0:02:46]}  Nhf6 {[%clk 0:02:37]} 13. a4 {[%clk 0:02:42]}  a6 {[%clk 0:02:32]} 14. Bf4 {[%clk 0:02:42]}  Qc7 {[%clk 0:02:31]} 15. Ne3 {[%clk 0:02:37]}  Rfe8 {[%clk 0:02:25]} 16. h3 {[%clk 0:02:37]}  Bf8 {[%clk 0:02:13]} 17. Bh2 {[%clk 0:02:37]}  Rad8 {[%clk 0:02:07]} 18. Qe2 {[%clk 0:02:36]}  Qc8 {[%clk 0:02:08]} 19. Rad1 {[%clk 0:02:31]}  Qa8 {[%clk 0:02:08]} 20. Nd2 {[%clk 0:02:27]}  g6 {[%clk 0:02:05]} 21. Ndc4 {[%clk 0:02:26]}  e5 {[%clk 0:02:00]} 22. dxe5 {[%clk 0:02:26]}  dxe5 {[%clk 0:02:00]} 23. Bc2 {[%clk 0:02:21]}  Nd5 {[%clk 0:01:49]} 24. Nxd5 {[%clk 0:02:10]}  Bxd5 {[%clk 0:01:47]} 25. Ne3 {[%clk 0:02:09]}  Bc6 {[%clk 0:01:38]} 26. b4 {[%clk 0:01:51]}  a5 {[%clk 0:01:33]} 27. b5 {[%clk 0:01:30]}  Bb7 {[%clk 0:01:33]} 28. c4 {[%clk 0:01:31]}  Bb4 {[%clk 0:01:29]} 29. Rf1 {[%clk 0:01:30]}  Nf6 {[%clk 0:01:18]} 30. Rxd8 {[%clk 0:01:27]}  Qxd8 {[%clk 0:01:18]} 31. Rd1 {[%clk 0:01:27]}  Qa8 {[%clk 0:01:17]} 32. Bg3 {[%clk 0:01:24]}  Bc5 {[%clk 0:01:11]} 33. Bh4 {[%clk 0:01:23]}  Nh5 {[%clk 0:01:06]} 34. Nd5 {[%clk 0:00:46]}  Nf4 {[%clk 0:00:31]} 35. Qf3 {[%clk 0:00:17]}  Nxd5 {[%clk 0:00:23]} 36. cxd5 {[%clk 0:00:17]}  f5 {[%clk 0:00:17]} 37. Qb3 {[%clk 0:00:14]}  Bd6 {[%clk 0:00:16]} 38. Bb1 {[%clk 0:00:11]}  Rc8 {[%clk 0:00:11]} 39. Qb2 {[%clk 0:00:10]}  Qb8 {[%clk 0:00:11]} 40. Bg5 {[%clk 0:00:10]}  Qc7 {[%clk 0:00:10]} 41. Rc1 {[%clk 0:00:09]}  Qf7 {[%clk 0:00:09]} 42. Ba2 {[%clk 0:00:07]}  Rxc1+ {[%clk 0:00:08]} 43. Qxc1 {[%clk 0:00:08]}  Bxd5 {[%clk 0:00:06]} 44. Qc8+ {[%clk 0:00:09]}  Kg7 {[%clk 0:00:06]} 45. Bxd5 {[%clk 0:00:08]}  Qxd5 {[%clk 0:00:06]} 46. Qd7+ {[%clk 0:00:09]}  Kg8 {[%clk 0:00:04]} 47. Qd8+ {[%clk 0:00:08]}  Kg7 {[%clk 0:00:02]} 48. Qf6+ {[%clk 0:00:05]}  Kg8 {[%clk 0:00:02]} 49. Qd8+ {[%clk 0:00:05]}  Kg7 {[%clk 0:00:02]} 50. g3 {[%clk 0:00:05]}  Qd1+ {[%clk 0:00:02]} 51. Kg2 {[%clk 0:00:06]}  Qd5+ {[%clk 0:00:02]} 52. Kh2 {[%clk 0:00:07]}  Qd4 {[%clk 0:00:02]} 53. Be3 {[%clk 0:00:06]}  Qd3 {[%clk 0:00:02]} 54. Qd7+ {[%clk 0:00:06]}  Kg8 {[%clk 0:00:02]} 55. Bxb6 {[%clk 0:00:06]}  e4 {[%clk 0:00:01]} 56. Qd8+ {[%clk 0:00:06]}  Kg7 {[%clk 0:00:01]} 57. Qd7+ {[%clk 0:00:06]}  Kg8 {[%clk 0:00:01]} 58. Qc8+ {[%clk 0:00:06]}  Kg7 {[%clk 0:00:02]} 59. Qc6 {[%clk 0:00:06]}  e3 {[%clk 0:00:02]} 60. Bxe3 {[%clk 0:00:06]}  Bb4 {[%clk 0:00:02]} 61. Qc7+ {[%clk 0:00:06]}  Kg8 {[%clk 0:00:02]} 62. Qc8+ {[%clk 0:00:06]}  Kf7 {[%clk 0:00:02]} 63. b6 {[%clk 0:00:07]} 1-0


[Site "https://www.chess.com"]

[Event "Titled Tuesday Blitz November 15 Early 2022"]
[White "Sarana, Alexey"]
[Black "Csonka, Balazs"]
[WhiteFideId "24133795"]
[BlackFideId "742910"]
[WhiteElo "2708"]
[BlackElo "2404"]
[Result "0-1"]
[Round "02"]
[TimeControl "180+1"]
[Date "2022.11.15"]
[WhiteClock "0:00:11"]
[BlackClock "0:00:03"]

1. c4 {[%clk 0:03:00]}  c6 {[%clk 0:02:52]} 2. Nf3 {[%clk 0:03:00]}  d5 {[%clk 0:02:51]} 3. d4 {[%clk 0:03:01]}  Nf6 {[%clk 0:02:50]} 4. Nc3 {[%clk 0:03:02]}  e6 {[%clk 0:02:49]} 5. e3 {[%clk 0:03:01]}  Nbd7 {[%clk 0:02:48]} 6. Bd3 {[%clk 0:03:02]}  dxc4 {[%clk 0:02:46]} 7. Bxc4 {[%clk 0:03:03]}  b5 {[%clk 0:02:46]} 8. Bd3 {[%clk 0:03:03]}  Bd6 {[%clk 0:02:46]} 9. Qc2 {[%clk 0:03:03]}  Bb7 {[%clk 0:02:45]} 10. O-O {[%clk 0:02:59]}  O-O {[%clk 0:02:44]} 11. e4 {[%clk 0:02:59]}  e5 {[%clk 0:02:43]} 12. Bg5 {[%clk 0:02:59]}  Qc7 {[%clk 0:02:34]} 13. dxe5 {[%clk 0:02:57]}  Nxe5 {[%clk 0:02:34]} 14. Nxe5 {[%clk 0:02:57]}  Bxe5 {[%clk 0:02:35]} 15. f4 {[%clk 0:02:57]}  Bd4+ {[%clk 0:02:11]} 16. Kh1 {[%clk 0:02:56]}  Bxc3 {[%clk 0:01:29]} 17. bxc3 {[%clk 0:02:54]}  Nd7 {[%clk 0:01:27]} 18. e5 {[%clk 0:02:53]}  h6 {[%clk 0:01:26]} 19. Be7 {[%clk 0:02:53]}  Rfe8 {[%clk 0:01:22]} 20. Bd6 {[%clk 0:02:52]}  Qb6 {[%clk 0:01:22]} 21. Rae1 {[%clk 0:02:51]}  c5 {[%clk 0:01:08]} 22. Bf5 {[%clk 0:02:37]}  Nf8 {[%clk 0:01:02]} 23. Qf2 {[%clk 0:02:27]}  Ne6 {[%clk 0:00:44]} 24. Qg3 {[%clk 0:02:13]}  c4 {[%clk 0:00:41]} 25. Bc2 {[%clk 0:02:08]}  Nc5 {[%clk 0:00:24]} 26. f5 {[%clk 0:02:06]}  Nd3 {[%clk 0:00:25]} 27. Re3 {[%clk 0:01:56]}  Rad8 {[%clk 0:00:21]} 28. f6 {[%clk 0:01:55]}  g6 {[%clk 0:00:21]} 29. Qh3 {[%clk 0:01:19]}  h5 {[%clk 0:00:16]} 30. Be7 {[%clk 0:01:05]}  Rd5 {[%clk 0:00:06]} 31. Rg3 {[%clk 0:00:53]}  Nf2+ {[%clk 0:00:03]} 32. Rxf2 {[%clk 0:00:49]}  Qxf2 {[%clk 0:00:04]} 33. Bc5 {[%clk 0:00:11]}  Rxc5 {[%clk 0:00:04]} 34. Rxg6+ {[%clk 0:00:11]}  fxg6 {[%clk 0:00:03]} 35. f7+ {[%clk 0:00:11]}  Qxf7 {[%clk 0:00:03]} 36. Qe3 {[%clk 0:00:11]}  Rcxe5 {[%clk 0:00:03]} 0-1


[Site "https://www.chess.com"]

[Event "Titled Tuesday Blitz November 15 Early 2022"]
[White "Sariego Figueredo, Wilfredo"]
[Black "Makhmudov, Shukhrat"]
[WhiteFideId "3500080"]
[BlackFideId "14200775"]
[WhiteElo "2309"]
[BlackElo "2135"]
[Result "0-1"]
[Round "02"]
[TimeControl "180+1"]
[Date "2022.11.16"]
[WhiteClock "0:00:02"]
[BlackClock "0:00:34"]

1. d4 {[%clk 0:03:00]}  Nf6 {[%clk 0:02:59]} 2. Bf4 {[%clk 0:03:00]}  d5 {[%clk 0:02:59]} 3. e3 {[%clk 0:02:59]}  c5 {[%clk 0:03:00]} 4. c3 {[%clk 0:02:59]}  Nc6 {[%clk 0:03:00]} 5. Bd3 {[%clk 0:02:57]}  Qb6 {[%clk 0:02:44]} 6. b3 {[%clk 0:02:40]}  cxd4 {[%clk 0:02:37]} 7. cxd4 {[%clk 0:02:34]}  Nb4 {[%clk 0:02:35]} 8. Nf3 {[%clk 0:02:23]}  Nxd3+ {[%clk 0:02:34]} 9. Qxd3 {[%clk 0:02:24]}  Qa5+ {[%clk 0:02:15]} 10. Nbd2 {[%clk 0:02:18]}  g6 {[%clk 0:02:06]} 11. O-O {[%clk 0:02:16]}  Bf5 {[%clk 0:02:05]} 12. Qe2 {[%clk 0:02:10]}  Bg7 {[%clk 0:02:00]} 13. h3 {[%clk 0:02:00]}  O-O {[%clk 0:02:00]} 14. Rfc1 {[%clk 0:01:53]}  Rac8 {[%clk 0:01:58]} 15. a4 {[%clk 0:01:46]}  a6 {[%clk 0:01:45]} 16. Qd1 {[%clk 0:01:36]}  h6 {[%clk 0:01:38]} 17. Rxc8 {[%clk 0:01:34]}  Rxc8 {[%clk 0:01:37]} 18. Rc1 {[%clk 0:01:34]}  Rc3 {[%clk 0:01:34]} 19. Rxc3 {[%clk 0:01:07]}  Qxc3 {[%clk 0:01:34]} 20. Ne5 {[%clk 0:01:01]}  Nd7 {[%clk 0:01:26]} 21. Nxd7 {[%clk 0:00:59]}  Bxd7 {[%clk 0:01:25]} 22. Nf3 {[%clk 0:00:56]}  Bf5 {[%clk 0:01:18]} 23. Nd2 {[%clk 0:00:43]}  Bf8 {[%clk 0:01:09]} 24. g4 {[%clk 0:00:31]}  Bd3 {[%clk 0:01:08]} 25. Nb1 {[%clk 0:00:20]}  Qc2 {[%clk 0:01:02]} 26. Qxc2 {[%clk 0:00:14]}  Bxc2 {[%clk 0:01:02]} 27. Nd2 {[%clk 0:00:15]}  e6 {[%clk 0:01:01]} 28. Kf1 {[%clk 0:00:14]}  g5 {[%clk 0:00:57]} 29. Bc7 {[%clk 0:00:13]}  Bb4 {[%clk 0:00:57]} 30. Ke1 {[%clk 0:00:12]}  f5 {[%clk 0:00:54]} 31. Ke2 {[%clk 0:00:11]}  Kg7 {[%clk 0:00:41]} 32. a5 {[%clk 0:00:10]}  Kg6 {[%clk 0:00:41]} 33. f3 {[%clk 0:00:06]}  h5 {[%clk 0:00:38]} 34. Bb6 {[%clk 0:00:02]}  Bc3 {[%clk 0:00:34]} 0-1


[Site "https://www.chess.com"]

[Event "Titled Tuesday Blitz November 15 Early 2022"]
[White "Seifert, Henryk"]
[Black "Thorhallsson, Simon"]
[WhiteFideId "1100963"]
[BlackFideId "2310090"]
[WhiteElo "2120"]
[BlackElo "2109"]
[Result "0-1"]
[Round "02"]
[TimeControl "180+1"]
[Date "2022.11.16"]
[WhiteClock "0:00:02"]
[BlackClock "0:00:09"]

1. e4 {[%clk 0:03:00]}  c5 {[%clk 0:02:58]} 2. Nf3 {[%clk 0:03:00]}  d6 {[%clk 0:02:56]} 3. c3 {[%clk 0:02:59]}  Nf6 {[%clk 0:02:56]} 4. Be2 {[%clk 0:02:57]}  g6 {[%clk 0:02:47]} 5. O-O {[%clk 0:02:56]}  Bg7 {[%clk 0:02:48]} 6. d3 {[%clk 0:02:53]}  O-O {[%clk 0:02:44]} 7. h3 {[%clk 0:02:52]}  Nc6 {[%clk 0:02:40]} 8. Be3 {[%clk 0:02:52]}  Rb8 {[%clk 0:02:26]} 9. a4 {[%clk 0:02:49]}  a6 {[%clk 0:02:26]} 10. Nbd2 {[%clk 0:02:37]}  b5 {[%clk 0:02:25]} 11. axb5 {[%clk 0:02:33]}  axb5 {[%clk 0:02:26]} 12. d4 {[%clk 0:02:24]}  cxd4 {[%clk 0:02:16]} 13. cxd4 {[%clk 0:02:20]}  d5 {[%clk 0:01:58]} 14. e5 {[%clk 0:02:16]}  Ne4 {[%clk 0:01:59]} 15. Rc1 {[%clk 0:01:48]}  Na5 {[%clk 0:01:43]} 16. b3 {[%clk 0:01:25]}  Nxd2 {[%clk 0:01:30]} 17. Bxd2 {[%clk 0:01:18]}  b4 {[%clk 0:01:29]} 18. Bg5 {[%clk 0:00:53]}  f6 {[%clk 0:01:20]} 19. Bf4 {[%clk 0:00:46]}  fxe5 {[%clk 0:01:03]} 20. Bxe5 {[%clk 0:00:45]}  Bxe5 {[%clk 0:01:02]} 21. Nxe5 {[%clk 0:00:44]}  Bd7 {[%clk 0:00:38]} 22. Bg4 {[%clk 0:00:30]}  Bxg4 {[%clk 0:00:30]} 23. hxg4 {[%clk 0:00:30]}  Qd6 {[%clk 0:00:21]} 24. Re1 {[%clk 0:00:26]}  Rfc8 {[%clk 0:00:20]} 25. Qd3 {[%clk 0:00:23]}  Nc6 {[%clk 0:00:14]} 26. Qe3 {[%clk 0:00:16]}  Nxe5 {[%clk 0:00:13]} 27. dxe5 {[%clk 0:00:16]}  Qe6 {[%clk 0:00:12]} 28. Qd4 {[%clk 0:00:12]}  Rxc1 {[%clk 0:00:11]} 29. Rxc1 {[%clk 0:00:12]}  Kg7 {[%clk 0:00:11]} 30. Rd1 {[%clk 0:00:11]}  Rc8 {[%clk 0:00:10]} 31. Qxd5 {[%clk 0:00:09]}  Qxd5 {[%clk 0:00:10]} 32. Rxd5 {[%clk 0:00:10]}  Rc3 {[%clk 0:00:11]} 33. Rd7 {[%clk 0:00:08]}  Kf7 {[%clk 0:00:12]} 34. Rb7 {[%clk 0:00:06]}  Rxb3 {[%clk 0:00:12]} 35. f4 {[%clk 0:00:06]}  Rb2 {[%clk 0:00:12]} 36. f5 {[%clk 0:00:06]}  gxf5 {[%clk 0:00:13]} 37. gxf5 {[%clk 0:00:05]}  Re2 {[%clk 0:00:12]} 38. e6+ {[%clk 0:00:04]}  Kf6 {[%clk 0:00:12]} 39. Rxb4 {[%clk 0:00:05]}  Kxf5 {[%clk 0:00:12]} 40. Rh4 {[%clk 0:00:05]}  Kg6 {[%clk 0:00:11]} 41. Rg4+ {[%clk 0:00:04]}  Kf6 {[%clk 0:00:11]} 42. Rh4 {[%clk 0:00:04]}  Kg7 {[%clk 0:00:12]} 43. Rg4+ {[%clk 0:00:04]}  Kh8 {[%clk 0:00:12]} 44. Rf4 {[%clk 0:00:02]}  Rxe6 {[%clk 0:00:12]} 45. Rf7 {[%clk 0:00:02]}  Kg8 {[%clk 0:00:12]} 46. Rf4 {[%clk 0:00:02]}  Kg7 {[%clk 0:00:12]} 47. g3 {[%clk 0:00:02]}  h5 {[%clk 0:00:12]} 48. Kg2 {[%clk 0:00:03]}  Kg6 {[%clk 0:00:12]} 49. Ra4 {[%clk 0:00:03]}  Re2+ {[%clk 0:00:12]} 50. Kh3 {[%clk 0:00:02]}  Rb2 {[%clk 0:00:11]} 51. Ra5 {[%clk 0:00:02]}  Rb8 {[%clk 0:00:10]} 52. Ra6+ {[%clk 0:00:02]}  Kg5 {[%clk 0:00:09]} 53. Ra5+ {[%clk 0:00:01]}  Kg6 {[%clk 0:00:10]} 54. Ra6+ {[%clk 0:00:01]}  Kg7 {[%clk 0:00:10]} 55. Ra5 {[%clk 0:00:02]}  Rh8 {[%clk 0:00:09]} 56. Kh4 {[%clk 0:00:02]}  Kf6 {[%clk 0:00:09]} 0-1


[Site "https://www.chess.com"]

[Event "Titled Tuesday Blitz November 15 Early 2022"]
[White "Shimanov, Aleksandr"]
[Black "Skliarov, Viktor"]
[WhiteFideId "4198603"]
[BlackFideId "14106736"]
[WhiteElo "2605"]
[BlackElo "2284"]
[Result "1-0"]
[Round "02"]
[TimeControl "180+1"]
[Date "2022.11.15"]
[WhiteClock "0:01:47"]
[BlackClock "0:00:12"]

1. c4 {[%clk 0:03:00]}  e5 {[%clk 0:02:59]} 2. g3 {[%clk 0:03:00]}  Nf6 {[%clk 0:03:00]} 3. Bg2 {[%clk 0:03:01]}  c6 {[%clk 0:03:00]} 4. d4 {[%clk 0:02:58]}  exd4 {[%clk 0:02:56]} 5. Qxd4 {[%clk 0:02:57]}  Na6 {[%clk 0:02:56]} 6. Nf3 {[%clk 0:02:52]}  Bc5 {[%clk 0:02:55]} 7. Qe5+ {[%clk 0:02:50]}  Be7 {[%clk 0:02:55]} 8. O-O {[%clk 0:02:47]}  O-O {[%clk 0:02:55]} 9. Nc3 {[%clk 0:02:43]}  d6 {[%clk 0:02:54]} 10. Qf4 {[%clk 0:02:43]}  Nc5 {[%clk 0:02:38]} 11. Rd1 {[%clk 0:02:39]}  a5 {[%clk 0:02:32]} 12. b3 {[%clk 0:02:39]}  Qc7 {[%clk 0:02:24]} 13. Ba3 {[%clk 0:02:36]}  b6 {[%clk 0:02:01]} 14. Nd4 {[%clk 0:02:36]}  Bd7 {[%clk 0:01:52]} 15. Nf5 {[%clk 0:02:27]}  Bxf5 {[%clk 0:01:52]} 16. Qxf5 {[%clk 0:02:28]}  Rfd8 {[%clk 0:01:44]} 17. Rd2 {[%clk 0:02:27]}  g6 {[%clk 0:01:10]} 18. Qc2 {[%clk 0:02:26]}  Nfd7 {[%clk 0:01:06]} 19. Rad1 {[%clk 0:02:25]}  Nf8 {[%clk 0:01:04]} 20. Bb2 {[%clk 0:02:22]}  Nfe6 {[%clk 0:00:58]} 21. e3 {[%clk 0:02:18]}  Bf8 {[%clk 0:00:56]} 22. a3 {[%clk 0:02:14]}  Bg7 {[%clk 0:00:31]} 23. b4 {[%clk 0:02:13]}  axb4 {[%clk 0:00:29]} 24. axb4 {[%clk 0:02:14]}  Na6 {[%clk 0:00:16]} 25. b5 {[%clk 0:02:09]}  Nb4 {[%clk 0:00:15]} 26. Qb3 {[%clk 0:02:09]}  c5 {[%clk 0:00:15]} 27. Bxa8 {[%clk 0:02:07]}  Rxa8 {[%clk 0:00:16]} 28. Nd5 {[%clk 0:02:00]}  Nxd5 {[%clk 0:00:15]} 29. Rxd5 {[%clk 0:02:01]}  h5 {[%clk 0:00:12]} 30. Bxg7 {[%clk 0:02:00]}  Kxg7 {[%clk 0:00:13]} 31. Qc3+ {[%clk 0:01:58]}  Kg8 {[%clk 0:00:12]} 32. Qf6 {[%clk 0:01:47]} 1-0


[Site "https://www.chess.com"]

[Event "Titled Tuesday Blitz November 15 Early 2022"]
[White "Shuvalov, Evgenij"]
[Black "Li, Hui"]
[WhiteFideId "4187237"]
[BlackFideId "15400310"]
[WhiteElo "2049"]
[BlackElo "1954"]
[Result "1/2-1/2"]
[Round "02"]
[TimeControl "180+1"]
[Date "2022.11.16"]
[WhiteClock "0:00:11"]
[BlackClock "0:00:03"]

1. d4 {[%clk 0:03:00]}  Nf6 {[%clk 0:02:59]} 2. c4 {[%clk 0:03:00]}  e6 {[%clk 0:02:59]} 3. Nf3 {[%clk 0:02:59]}  d5 {[%clk 0:03:00]} 4. cxd5 {[%clk 0:02:59]}  exd5 {[%clk 0:03:00]} 5. Nc3 {[%clk 0:02:59]}  c6 {[%clk 0:03:00]} 6. Bg5 {[%clk 0:02:59]}  Be7 {[%clk 0:02:57]} 7. Qc2 {[%clk 0:02:58]}  Nbd7 {[%clk 0:02:56]} 8. e3 {[%clk 0:02:58]}  O-O {[%clk 0:02:57]} 9. Bd3 {[%clk 0:02:58]}  Re8 {[%clk 0:02:57]} 10. O-O {[%clk 0:02:57]}  Nf8 {[%clk 0:02:58]} 11. h3 {[%clk 0:02:56]}  g6 {[%clk 0:02:51]} 12. Ne5 {[%clk 0:02:48]}  Ne6 {[%clk 0:02:50]} 13. Bh6 {[%clk 0:02:46]}  Ng7 {[%clk 0:02:49]} 14. g4 {[%clk 0:02:44]}  Nd7 {[%clk 0:02:48]} 15. f4 {[%clk 0:02:41]}  Nxe5 {[%clk 0:02:48]} 16. dxe5 {[%clk 0:02:24]}  Bc5 {[%clk 0:01:10]} 17. Rae1 {[%clk 0:02:23]}  Bf8 {[%clk 0:01:00]} 18. Bg5 {[%clk 0:02:03]}  Be7 {[%clk 0:00:59]} 19. Bxe7 {[%clk 0:01:58]}  Qxe7 {[%clk 0:00:59]} 20. e4 {[%clk 0:01:55]}  d4 {[%clk 0:00:53]} 21. Ne2 {[%clk 0:01:51]}  c5 {[%clk 0:00:53]} 22. Bc4 {[%clk 0:01:43]}  Be6 {[%clk 0:00:48]} 23. Nc1 {[%clk 0:01:39]}  Bxc4 {[%clk 0:00:47]} 24. Qxc4 {[%clk 0:01:40]}  b6 {[%clk 0:00:41]} 25. Nd3 {[%clk 0:01:39]}  Qh4 {[%clk 0:00:40]} 26. Rf3 {[%clk 0:01:37]}  Ne6 {[%clk 0:00:39]} 27. Re2 {[%clk 0:01:34]}  Rad8 {[%clk 0:00:36]} 28. b4 {[%clk 0:01:31]}  Qe7 {[%clk 0:00:34]} 29. b5 {[%clk 0:01:28]}  Nc7 {[%clk 0:00:29]} 30. f5 {[%clk 0:01:23]}  Qd7 {[%clk 0:00:29]} 31. a4 {[%clk 0:01:21]}  a6 {[%clk 0:00:29]} 32. e6 {[%clk 0:01:10]}  fxe6 {[%clk 0:00:28]} 33. fxg6 {[%clk 0:01:08]}  hxg6 {[%clk 0:00:28]} 34. Ne5 {[%clk 0:01:08]}  axb5 {[%clk 0:00:25]} 35. Qc1 {[%clk 0:00:49]}  Qg7 {[%clk 0:00:21]} 36. Qg5 {[%clk 0:00:44]}  Rf8 {[%clk 0:00:15]} 37. Rxf8+ {[%clk 0:00:35]}  Rxf8 {[%clk 0:00:15]} 38. axb5 {[%clk 0:00:29]}  Nxb5 {[%clk 0:00:15]} 39. Rb2 {[%clk 0:00:18]}  Nc3 {[%clk 0:00:12]} 40. Rxb6 {[%clk 0:00:17]}  Nxe4 {[%clk 0:00:12]} 41. Qxg6 {[%clk 0:00:16]}  Qxg6 {[%clk 0:00:11]} 42. Nxg6 {[%clk 0:00:17]}  Rd8 {[%clk 0:00:09]} 43. Rxe6 {[%clk 0:00:16]}  Ng5 {[%clk 0:00:06]} 44. Re5 {[%clk 0:00:15]}  Nxh3+ {[%clk 0:00:06]} 45. Kg2 {[%clk 0:00:14]}  d3 {[%clk 0:00:06]} 46. Re1 {[%clk 0:00:13]}  Ng5 {[%clk 0:00:05]} 47. Ne7+ {[%clk 0:00:12]}  Kf7 {[%clk 0:00:04]} 48. Nf5 {[%clk 0:00:13]}  c4 {[%clk 0:00:03]} 49. Ne3 {[%clk 0:00:13]}  c3 {[%clk 0:00:02]} 50. Nc4 {[%clk 0:00:12]}  d2 {[%clk 0:00:02]} 51. Nxd2 {[%clk 0:00:12]}  Rxd2+ {[%clk 0:00:02]} 52. Kg3 {[%clk 0:00:12]}  c2 {[%clk 0:00:02]} 53. Rc1 {[%clk 0:00:12]}  Ne4+ {[%clk 0:00:03]} 54. Kf4 {[%clk 0:00:12]}  Nf2 {[%clk 0:00:03]} 55. Ke3 {[%clk 0:00:12]}  Rd1 {[%clk 0:00:01]} 56. Rxc2 {[%clk 0:00:11]}  Nxg4+ {[%clk 0:00:02]} 57. Kf4 {[%clk 0:00:12]}  Nf6 {[%clk 0:00:02]} 58. Rc7+ {[%clk 0:00:11]}  Rd7 {[%clk 0:00:02]} 59. Rxd7+ {[%clk 0:00:11]}  Nxd7 {[%clk 0:00:03]} 1/2-1/2


[Site "https://www.chess.com"]

[Event "Titled Tuesday Blitz November 15 Early 2022"]
[White "Sourath Biswas"]
[Black "Kaminski, Victor"]
[WhiteFideId "35091484"]
[BlackFideId "1131630"]
[WhiteElo "2164"]
[BlackElo "2181"]
[Result "1-0"]
[Round "02"]
[TimeControl "180+1"]
[Date "2022.11.16"]
[WhiteClock "0:00:03"]
[BlackClock "0:00:01"]

1. d4 {[%clk 0:02:59]}  Nf6 {[%clk 0:02:58]} 2. Bf4 {[%clk 0:02:58]}  g6 {[%clk 0:02:52]} 3. Nc3 {[%clk 0:02:56]}  Bg7 {[%clk 0:02:48]} 4. e4 {[%clk 0:02:54]}  d6 {[%clk 0:02:35]} 5. Qd2 {[%clk 0:02:53]}  Nc6 {[%clk 0:02:26]} 6. O-O-O {[%clk 0:02:51]}  Nh5 {[%clk 0:02:13]} 7. Be3 {[%clk 0:02:35]}  e5 {[%clk 0:02:12]} 8. d5 {[%clk 0:02:33]}  Ne7 {[%clk 0:02:07]} 9. g3 {[%clk 0:02:20]}  O-O {[%clk 0:02:06]} 10. Be2 {[%clk 0:02:18]}  Nf6 {[%clk 0:01:57]} 11. Bh6 {[%clk 0:02:17]}  Ne8 {[%clk 0:01:52]} 12. h4 {[%clk 0:02:11]}  f5 {[%clk 0:01:49]} 13. h5 {[%clk 0:02:10]}  Nf6 {[%clk 0:01:42]} 14. hxg6 {[%clk 0:02:07]}  hxg6 {[%clk 0:01:37]} 15. Bxg7 {[%clk 0:02:07]}  Kxg7 {[%clk 0:01:38]} 16. Qh6+ {[%clk 0:02:07]}  Kf7 {[%clk 0:01:36]} 17. Nh3 {[%clk 0:02:07]}  Rg8 {[%clk 0:01:17]} 18. Ng5+ {[%clk 0:02:05]}  Ke8 {[%clk 0:01:15]} 19. Bb5+ {[%clk 0:02:02]}  c6 {[%clk 0:01:14]} 20. dxc6 {[%clk 0:02:01]}  bxc6 {[%clk 0:01:14]} 21. Bc4 {[%clk 0:02:02]}  d5 {[%clk 0:01:05]} 22. exd5 {[%clk 0:01:58]}  cxd5 {[%clk 0:01:06]} 23. Nxd5 {[%clk 0:01:42]}  Nexd5 {[%clk 0:01:03]} 24. Rhe1 {[%clk 0:01:28]}  e4 {[%clk 0:00:37]} 25. Bxd5 {[%clk 0:01:15]}  Nxd5 {[%clk 0:00:36]} 26. Qh7 {[%clk 0:01:04]}  Qxg5+ {[%clk 0:00:31]} 27. f4 {[%clk 0:01:04]}  Nf6 {[%clk 0:00:18]} 28. Qc7 {[%clk 0:01:03]}  Nd5 {[%clk 0:00:12]} 29. Rxd5 {[%clk 0:01:02]}  Qe7 {[%clk 0:00:12]} 30. Re5 {[%clk 0:01:01]}  Be6 {[%clk 0:00:11]} 31. Qc3 {[%clk 0:00:18]}  Kf7 {[%clk 0:00:10]} 32. Rc5 {[%clk 0:00:14]}  Rac8 {[%clk 0:00:09]} 33. Rxc8 {[%clk 0:00:07]}  Rxc8 {[%clk 0:00:10]} 34. Qa5 {[%clk 0:00:07]}  Qc5 {[%clk 0:00:09]} 35. Qa4 {[%clk 0:00:07]}  Rc7 {[%clk 0:00:05]} 36. c3 {[%clk 0:00:04]}  Qc6 {[%clk 0:00:04]} 37. Qd4 {[%clk 0:00:04]}  Qd5 {[%clk 0:00:03]} 38. Qh8 {[%clk 0:00:04]}  Qxa2 {[%clk 0:00:02]} 39. Qh7+ {[%clk 0:00:03]}  Ke8 {[%clk 0:00:01]} 40. Qxc7 {[%clk 0:00:04]}  Bf7 {[%clk 0:00:01]} 41. Rd1 {[%clk 0:00:03]}  Qa1+ {[%clk 0:00:01]} 42. Kd2 {[%clk 0:00:03]} 1-0


[Site "https://www.chess.com"]